fUST/lending_fUST_20240110
["ID","MTS","AMOUNT","RATE_DAILY","PERIOD"]
[310996046,1704844541551,-155.0,0.00014398,2]
[310996047,1704844541578,-3751.0732664,0.000151,2]
[310996048,1704844541610,-79.71578095,0.000151,2]
[310996049,1704844544659,-235.57845154,0.000151,2]
[310996050,1704844544815,-4.8077235,0.000151,2]
[310996051,1704844547114,182.50978617,0.000151,2]
[310996052,1704844548503,-292.13938338,0.000151,2]
[310996053,1704844548622,-5.96202823,0.000151,2]
[310996110,1704844557153,-3754.1732664,0.000151,2]
[310996117,1704844557274,-76.61578095,0.000151,2]
[310996123,1704844563464,-155.0,0.00014397,2]
[310996124,1704844563493,-190.26596294,0.000151,2]
[310996125,1704844563656,-7.04624414,0.000151,2]
[310996126,1704844564070,298.10141161,0.000151,2]
[310996127,1704844573192,-3754.1732664,0.000151,2]
[310996128,1704844573348,-76.61578095,0.000151,2]
[310996129,1704844584595,-155.0,0.00014397,2]
[310996130,1704844584627,-328.5746997,0.000151,2]
[310996131,1704844584744,-9.86887142,0.000151,2]
[310996132,1704844588820,-12000.0,0.00014775,2]
[310996133,1704844588942,-12000.0,0.00014775,2]
[310996134,1704844589048,-900.0,0.00014775,2]
[310996135,1704844595261,-3754.1732664,0.000151,2]
[310996136,1704844595357,-76.61578095,0.000151,2]
[310996138,1704844596546,155.0,0.00014397,2]
[310996139,1704844602793,-225.82316213,0.000151,2]
[310996140,1704844602987,-4.60863596,0.000151,2]
[310996141,1704844613284,-155.0,0.00014397,2]
[310996142,1704844613314,-2549.60431557,0.000151,2]
[310996143,1704844613478,-55.19600644,0.000151,2]
[310996147,1704844656511,-155.0,0.00014397,2]
[310996148,1704844656541,-289.03938338,0.000151,2]
[310996149,1704844656712,-9.06202823,0.000151,2]
[310996150,1704844660380,-2580.07408268,0.00014999,2]
[310996151,1704844660666,-52.65457312,0.00014999,2]
[310996152,1704844689663,-155.0,0.00014397,2]
[310996153,1704844689692,-322.75514155,0.00015101,2]
[310996154,1704844689720,-178.40030532,0.00015101,2]
[310996155,1704844689748,-170.42946526,0.00015101,2]
[310996156,1704844689776,-1250.39757004,0.00015101,2]
[310996157,1704844689804,-469.99684339,0.00015101,2]
[310996158,1704844689832,-901.51710272,0.00015101,2]
[310996159,1704844689861,-2306.65257966,0.00015101,2]
[310996160,1704844689889,-520.84270389,0.00015101,2]
[310996161,1704844689916,-309.65926639,0.00015101,2]
[310996162,1704844689944,-175.97606323,0.00015101,2]
[310996163,1704844689974,-879.18158696,0.00015101,2]
[310996164,1704844690003,-1459.07284062,0.00015101,2]
[310996165,1704844690152,-185.71186672,0.00015101,2]
[310996170,1704844726127,-155.0,0.00014397,2]
[310996172,1704844792013,-155.0,0.00014397,2]
[310996174,1704844845118,-155.0,0.00014397,2]
[310996175,1704844845147,-454.53730614,0.00015077,2]
[310996176,1704844845255,-12.43953686,0.00015077,2]
[310996178,1704844920221,-155.0,0.00014397,2]
[310996179,1704844985558,-155.0,0.00014397,2]
[310996190,1704845022955,-155.0,0.00014397,2]
[310996191,1704845022993,-11845.0,0.00014999,2]
[310996192,1704845023384,-12000.0,0.00014999,2]
[310996193,1704845023648,-1055.0,0.00014999,2]
[310996194,1704845050348,-155.0,0.00014397,2]
[310996221,1704845299900,1919.57877992,0.000231,7]
[310996223,1704845301807,-155.0,0.00014397,2]
[310996224,1704845301838,-225.71865258,0.00015077,2]
[310996225,1704845301898,-7.76976842,0.00015077,2]
[310996253,1704845408808,-155.0,0.00014395,2]
[310996254,1704845408839,-148.8,0.00014396,2]
[310996255,1704845408916,-6.2,0.00014396,2]
[310996284,1704845432820,-155.0,0.00014395,2]
[310996286,1704845432829,-309.61298454,0.00015106,2]
[310996288,1704845432839,-134.57170543,0.00015106,2]
[310996290,1704845432851,-20.75463548,0.00015106,2]
[310996292,1704845432861,-309.81411154,0.00015106,2]
[310996295,1704845432870,-1405.98961247,0.00015749,2]
[310996297,1704845432879,-330.20867004,0.000159,2]
[310996299,1704845432889,-155.0,0.00015995,2]
[310996301,1704845432898,-104569.21307236,0.00015996,2]
[310996850,1704845441539,-1217.1330243,0.00015996,2]
[310996893,1704845441946,-10202.84952288,0.00015996,2]
[310996895,1704845441965,-154737.20757733,0.00015996,2]
[310996898,1704845441976,-216.43593435,0.00015997,2]
[310996900,1704845441990,-642.78616711,0.00015997,2]
[310996902,1704845442004,-2618.48832486,0.00015997,2]
[310996905,1704845442022,-194.37028855,0.00015997,2]
[310996908,1704845442036,-2175.32490339,0.00015997,2]
[310996910,1704845442048,-262.33093689,0.00015997,2]
[310996912,1704845442061,-535.20908359,0.00015997,2]
[310996915,1704845442074,-167.96410175,0.00015997,2]
[310996917,1704845442087,-158.69379657,0.00015997,2]
[310996919,1704845442099,-1983.36763565,0.00015997,2]
[310996922,1704845442113,-5004.71749036,0.00015997,2]
[310996924,1704845442125,-586.93974545,0.00015997,2]
[310996926,1704845442136,-357.67173388,0.00015997,2]
[310996928,1704845442151,-5915.89464317,0.00015997,2]
[310996931,1704845442164,-309.87604958,0.00015997,2]
[310996933,1704845442178,-1239.33609761,0.00015997,2]
[310996935,1704845442190,-309.81411154,0.00015997,2]
[310996938,1704845442204,-36811.04917865,0.00015997,2]
[310996940,1704845442217,-164.88125202,0.00015998,2]
[310996943,1704845442232,-554.01717511,0.00015998,2]
[310996945,1704845442246,-2099.91652736,0.00015998,2]
[310996947,1704845442261,-2069.9093597,0.00015998,2]
[310996950,1704845442271,-1736.89858519,0.00015999,2]
[310996952,1704845442281,-80385.49779964,0.00016,2]
[310996954,1704845442293,-4662.58315806,0.0001631,2]
[310996956,1704845442307,-271.89552092,0.000165,2]
[310996958,1704845442320,-872.3740242,0.00017235,2]
[310996960,1704845442333,-200.0,0.00017596,2]
[310996963,1704845442344,-245.98926642,0.000178,2]
[310996965,1704845442355,-10496.72843604,0.00017898,2]
[310996967,1704845442366,-333.37930055,0.00018897,2]
[310996969,1704845442379,-4139.72516863,0.00018897,2]
[310996971,1704845442392,-1578.28669107,0.00019,2]
[310996974,1704845442405,-177.305891,0.00019178,2]
[310996976,1704845442418,-179.637706,0.00019178,2]
[310996978,1704845442430,-280.0,0.00019355,2]
[310996980,1704845442442,-330.20867003,0.000194,2]
[310996982,1704845442454,-1112.0110415,0.000195,2]
[310996985,1704845442466,-1807.71492456,0.00019998,2]
[310996987,1704845442478,-200.0,0.0002,2]
[310996989,1704845442489,-2079.14548292,0.0002,2]
[310996991,1704845442501,-317.92199098,0.0002,2]
[310996993,1704845442514,-300.0,0.0002,2]
[310996996,1704845442526,-236.58553914,0.0002,2]
[310996998,1704845442537,-155.0,0.0002,2]
[310997000,1704845442549,-428.93135649,0.0002,2]
[310997002,1704845442564,-1194.83746505,0.0002,2]
[310997005,1704845442577,-2993.53442921,0.0002,2]
[310997007,1704845442588,-510.5588262,0.0002,2]
[310997009,1704845442600,-676.79171251,0.0002,2]
[310997011,1704845442611,-853.38318073,0.0002,2]
[310997013,1704845442625,-151.50000152,0.0002,2]
[310997016,1704845442637,-2276.435885,0.0002,2]
[310997018,1704845442649,-2276.435885,0.0002,2]
[310997020,1704845442661,-2276.435885,0.0002,2]
[310997022,1704845442673,-2276.435885,0.0002,2]
[310997024,1704845442684,-2276.435885,0.0002,2]
[310997027,1704845442696,-1994.72417435,0.0002024,2]
[310997029,1704845442707,-583.71052639,0.00020997,2]
[310997031,1704845442719,-190.96827556,0.00020997,2]
[310997033,1704845442730,-860.62181226,0.00020997,2]
[310997035,1704845442741,-451.65400802,0.00020998,2]
[310997037,1704845442754,-264.80820677,0.00020998,2]
[310997040,1704845442767,-1290.72817531,0.00020998,2]
[310997042,1704845442779,-2872.41512846,0.00020998,2]
[310997044,1704845442791,-502.45715716,0.00020998,2]
[310997046,1704845442800,-1821.42144287,0.00021,2]
[310997048,1704845442809,-326.6549607,0.00021,2]
[310997050,1704845442818,-9841.05194793,0.00021,2]
[310997051,1704845442827,-12443.36605776,0.00021,2]
[310997052,1704845442836,-193.91630954,0.00021,2]
[310997053,1704845442845,-1543.36628755,0.00021,2]
[310997054,1704845442853,-166.666666,0.00021918,2]
[310997055,1704845442862,-1574.98050805,0.00021998,2]
[310997056,1704845442871,-6922.98649305,0.00021998,2]
[310997057,1704845442880,-292.76629846,0.00022,4]
[310997058,1704845442888,-155.05892239,0.00022,2]
[310997060,1704845442899,-156.82833971,0.00022,2]
[310997062,1704845442907,-3927.64829251,0.00022,2]
[310997064,1704845442916,-4916.51301772,0.00022,2]
[310997066,1704845442925,-8600.64481078,0.00022221,2]
[310997069,1704845442935,-166.666666,0.00022431,2]
[310997071,1704845442945,-233.488421,0.00022615,2]
[310997074,1704845442955,-330.20867003,0.000229,2]
[310997122,1704845443132,-166.666666,0.00022944,2]
[310997127,1704845443148,-2092.57766549,0.00023,2]
[310997130,1704845443158,-9918.08132345,0.00023,2]
[310997133,1704845443167,-5075.84209267,0.00023172,2]
[310997136,1704845443177,-165.26448901,0.00023288,4]
[310997139,1704845443186,-600.35167456,0.00023288,4]
[310997142,1704845443195,-451.83647552,0.00023288,4]
[310997145,1704845443204,-218.1808116,0.00023288,4]
[310997147,1704845443213,-166.666666,0.00023456,2]
[310997150,1704845443221,-166.666666,0.00023969,2]
[310997152,1704845443229,-22592.48719876,0.00023998,2]
[310997154,1704845443238,-155.0,0.00024,2]
[310997156,1704845443247,-2292.62638427,0.00024,2]
[310997158,1704845443256,-166.666666,0.00024482,2]
[310997160,1704845443270,-641.24541786,0.00024655,2]
[310997162,1704845443279,-155.12404974,0.00024655,2]
[310997164,1704845443289,-585.733802,0.00024655,2]
[310997166,1704845443298,-380.0,0.00024658,2]
[310997168,1704845443307,-309.94692209,0.00024997,2]
[310997170,1704845443317,-309.48906512,0.00024998,2]
[310997172,1704845443327,-677.25499859,0.00025,2]
[310997174,1704845443337,-3006.85624099,0.00025,2]
[310997176,1704845443347,-155.16127502,0.00025,2]
[310997178,1704845443356,-3000.0,0.00025,2]
[310997180,1704845443366,-763.21617798,0.00025,2]
[310997182,1704845443375,-4709.99124251,0.00025,2]
[310997184,1704845443385,-613.86507578,0.00025,2]
[310997186,1704845443394,-155.11784676,0.00025,2]
[310997188,1704845443404,-1004.42384051,0.00025,2]
[310997190,1704845443414,-978.88032498,0.000259,2]
[310997192,1704845443424,-525.7750246,0.00026,2]
[310997194,1704845443434,-330.20867003,0.000264,2]
[310997196,1704845443444,-496.879336,0.0002698,5]
[310997198,1704845443453,-1407.38454672,0.00027,2]
[310997200,1704845443462,-3312.33970056,0.00027,2]
[310997202,1704845443472,-160.0,0.00027106,3]
[310997204,1704845443482,-160.0,0.00027238,4]
[310997206,1704845443491,-160.0,0.00027369,5]
[310997208,1704845443500,-12063.38,0.00027397,3]
[310997210,1704845443516,-18834.96,0.00027397,3]
[310997212,1704845443525,-15695.8,0.00027397,3]
[310997214,1704845443534,-13079.83,0.00027397,3]
[310997216,1704845443545,-33079.52681761,0.000275,2]
[310997218,1704845443554,-160.0,0.00027501,6]
[310997220,1704845443563,-160.0,0.00027632,7]
[310997221,1704845443572,-160.0,0.00027764,8]
[310997223,1704845443581,-160.0,0.00027896,9]
[310997225,1704845443590,-155.0,0.00028,2]
[310997227,1704845443600,-304.92883245,0.00028,2]
[310997229,1704845443609,-668.1030034,0.00028,2]
[310997231,1704845443618,-160.0,0.00028027,10]
[310997233,1704845443628,-160.0,0.00028159,11]
[310997235,1704845443638,-160.0,0.00028291,12]
[310997237,1704845443647,-160.0,0.00028422,13]
[310997239,1704845443657,-160.0,0.00028554,14]
[310997241,1704845443666,-160.0,0.00028685,15]
[310997243,1704845443676,-155.0,0.0002879,2]
[310997245,1704845443685,-160.0,0.00028817,16]
[310997247,1704845443694,-160.0,0.00028949,17]
[310997249,1704845443704,-8878.11747363,0.00029,2]
[310997251,1704845443713,-5000.0,0.00029,3]
[310997253,1704845443722,-1982.4602042,0.00029,2]
[310997255,1704845443731,-830.68320521,0.00029,2]
[310997257,1704845443740,-160.0,0.0002908,18]
[310997259,1704845443749,-160.0,0.00029212,19]
[310997261,1704845443759,-160.0,0.00029343,20]
[310997263,1704845443769,-160.0,0.00029475,21]
[310997265,1704845443778,-21959.10297807,0.000295,30]
[310997267,1704845443787,-160.0,0.00029607,22]
[310997269,1704845443796,-160.0,0.00029738,23]
[310997271,1704845443805,-458.76,0.00029789,2]
[310997273,1704845443814,-458.76,0.00029789,2]
[310997275,1704845443823,-458.76,0.00029789,2]
[310997277,1704845443832,-458.76,0.00029789,2]
[310997279,1704845443842,-458.76,0.00029789,2]
[310997281,1704845443850,-458.76,0.00029789,2]
[310997283,1704845443859,-458.76,0.00029789,2]
[310997285,1704845443868,-458.76,0.00029789,2]
[310997287,1704845443877,-458.76,0.00029789,2]
[310997289,1704845443885,-458.76,0.00029789,2]
[310997290,1704845443894,-77584.5698639,0.0002979,7]
[310997350,1704845874796,-150.0,0.00014395,2]
[310997351,1704845874827,-148.9,0.00014395,2]
[310997352,1704845874931,-6.1,0.00014395,2]
[310997400,1704846633292,-260.53656778,0.00015979,2]
[310997404,1704846633304,-155.0,0.0001598,2]
[310997407,1704846633314,-155.0,0.0001598,2]
[310997410,1704846633323,-521.29196907,0.00015995,2]
[310997412,1704846633333,-10496.72843604,0.00018996,2]
[310997415,1704846633344,-15638.29066881,0.00018997,2]
[310997418,1704846633354,-872.3740242,0.00018998,2]
[310997420,1704846633365,-1578.28669107,0.00019,2]
[310997422,1704846633375,-177.305891,0.00019178,2]
[310997424,1704846633385,-1112.0110415,0.000195,2]
[310997432,1704846633531,-151.51515152,0.0002,2]
[310997434,1704846633541,-266.00114845,0.0002,2]
[310997435,1704846633552,-1194.83746505,0.0002,2]
[310997436,1704846633562,-155.0,0.0002,2]
[310997437,1704846633572,-236.58553914,0.0002,2]
[310997438,1704846633584,-428.93135649,0.0002,2]
[310997439,1704846633595,-676.79171251,0.00020965,2]
[310997440,1704846633605,-2993.53442921,0.00020966,2]
[310997441,1704846633614,-853.38318073,0.00020967,2]
[310997442,1704846633625,-326.6549607,0.00021177,2]
[310997443,1704846633635,-179.726778,0.00021178,2]
[310997444,1704846633646,-166.666666,0.00021918,2]
[310997445,1704846633655,-4916.51301772,0.00022,2]
[310997446,1704846633666,-156.82833971,0.0002243,2]
[310997447,1704846633676,-166.666666,0.00022431,2]
[310997448,1704846633685,-3927.64829251,0.00022447,2]
[310997449,1704846633695,-975.60037361,0.00022449,2]
[310997450,1704846633705,-166.666666,0.00022944,2]
[310997451,1704846633715,-9918.08132345,0.00023,2]
[310997452,1704846633726,-166.666666,0.00023456,2]
[310997453,1704846633737,-2092.57766549,0.00023867,2]
[310997454,1704846633750,-452.68224054,0.00023868,2]
[310997455,1704846633760,-31141.64,0.00023885,3]
[310997456,1704846633770,-19349.70104192,0.00023895,3]
[310997457,1704846633783,-1114.74046268,0.00023895,3]
[310997500,1704846638690,-155.0,0.00015978,2]
[310997502,1704846638700,-10957.59544322,0.00023875,3]
[310997505,1704846638711,-14993.76455678,0.00023875,3]
[310997507,1704846638722,-8875.6436783,0.00023895,3]
[310997509,1704846638734,-8029.8748171,0.00023895,3]
[310997511,1704846638744,-2069.9093597,0.00023903,2]
[310997513,1704846638754,-2220.2158232,0.00023905,3]
[310997515,1704846638765,-14521.2863218,0.00023905,3]
[310997517,1704846638778,-2855.387855,0.00023905,3]
[310997519,1704846638788,-243.02658583,0.00023914,4]
[310997521,1704846638798,-500.0,0.00023914,4]
[310997523,1704846638807,-409.36887206,0.00023914,4]
[310997525,1704846638819,-385.61714104,0.00023914,4]
[310997527,1704846638830,-473.28109538,0.00023914,4]
[310997529,1704846638840,-500.0,0.00023914,4]
[310997531,1704846638849,-360.64090574,0.00023914,4]
[310997533,1704846638858,-600.93779883,0.00023914,4]
[310997535,1704846638868,-500.0,0.00023914,4]
[310997537,1704846638877,-500.0,0.00023914,2]
[310997539,1704846638887,-485.93464804,0.00023914,2]
[310997541,1704846638897,-500.0,0.00023914,2]
[310997543,1704846638906,-364.77401498,0.00023914,2]
[310997545,1704846638916,-529.68184323,0.00023914,2]
[310997547,1704846638925,-500.0,0.00023914,2]
[310997549,1704846638935,-453.65141978,0.00023914,2]
[310997551,1704846638943,-500.0,0.00023914,2]
[310997553,1704846638952,-500.0,0.00023914,2]
[310997555,1704846638961,-500.0,0.00023914,2]
[310997557,1704846638970,-234.61813176,0.00023914,2]
[310997559,1704846638979,-500.0,0.00023914,2]
[310997561,1704846638988,-500.0,0.00023914,2]
[310997562,1704846638998,-438.90746468,0.00023914,2]
[310997564,1704846639007,-270726.40319687,0.00023915,2]
[310997566,1704846639016,-209.35290532,0.00023925,2]
[310997568,1704846639024,-275.34209149,0.00023966,2]
[310997570,1704846639033,-166.666666,0.00023969,2]
[310997572,1704846639042,-880.89337746,0.00023998,2]
[310997574,1704846639053,-155.0,0.00024,2]
[310997576,1704846639062,-2292.62638427,0.00024,2]
[310997577,1704846639072,-178.635567,0.00024091,2]
[310997578,1704846639081,-166.666666,0.00024482,2]
[310997579,1704846639090,-380.0,0.00024658,2]
[310997580,1704846639100,-200.0,0.00024658,2]
[310997582,1704846639109,-250.6519581,0.00024817,2]
[310997584,1704846639118,-11005.58334538,0.00024901,2]
[310997586,1704846639127,-230.38355805,0.00024943,2]
[310997588,1704846639136,-831.80720154,0.00024953,2]
[310997590,1704846639146,-469.37613453,0.00024954,2]
[310997592,1704846639155,-471.61461688,0.00024964,2]
[310997594,1704846639164,-1290.44709012,0.00024965,2]
[310997596,1704846639174,-155.5939451,0.00024973,2]
[310997598,1704846639183,-560.14633467,0.00024973,2]
[310997600,1704846639192,-155.47988239,0.00024973,2]
[310997602,1704846639201,-273.66074184,0.00024973,2]
[310997604,1704846639210,-541.01379266,0.00024974,2]
[310997606,1704846639220,-641.24541786,0.00024984,2]
[310997608,1704846639229,-585.733802,0.00024984,2]
[310997610,1704846639238,-394.59655228,0.00024984,2]
[310997612,1704846639248,-209.68684064,0.00024984,2]
[310997614,1704846639257,-178.38053404,0.00024984,2]
[310997616,1704846639266,-309.94692209,0.00024985,2]
[310997618,1704846639275,-309.9846999,0.00024985,2]
[310997620,1704846639284,-209.42113913,0.00024986,2]
[310997622,1704846639294,-4709.99124251,0.00025,2]
[310997624,1704846639303,-3000.0,0.00025,2]
[310997626,1704846639312,-677.25499859,0.00025,2]
[310997628,1704846639321,-613.86507578,0.00025,2]
[310997630,1704846639330,-155.0,0.00025,2]
[310997632,1704846639339,-155.0,0.00025,2]
[310997633,1704846639348,-1004.42384051,0.00025,2]
[310997635,1704846639358,-452.68224054,0.00025324,2]
[310997637,1704846639367,-978.88032498,0.000259,2]
[310997640,1704846639376,-525.7750246,0.00026,2]
[310997641,1704846639387,-3580.53429443,0.00026,2]
[310997643,1704846639397,-678.91850505,0.000264,2]
[310997645,1704846639406,-253.44967928,0.00026773,2]
[310997647,1704846639415,-452.68224054,0.00026779,2]
[310997648,1704846639424,-5081.80703662,0.00026796,2]
[310997649,1704846639432,-15873.6712433,0.00026797,2]
[310997650,1704846639441,-496.879336,0.0002698,5]
[310997651,1704846639450,-733.24734884,0.00027,2]
[310997652,1704846639458,-155.0,0.00027397,2]
[310997653,1704846639467,-3384.68367641,0.00027689,2]
[310997654,1704846639476,-622.94592525,0.0002772,2]
[310997655,1704846639485,-668.1030034,0.00028,2]
[310997656,1704846639493,-155.0,0.00028,2]
[310997657,1704846639504,-452.68224054,0.00028235,2]
[310997658,1704846639513,-157.76589739,0.0002828,2]
[310997659,1704846639522,-155.0,0.00028767,2]
[310997660,1704846639531,-3074.02232779,0.00028997,2]
[310997661,1704846639540,-1982.4602042,0.00029,2]
[310997662,1704846639549,-8878.11747363,0.00029,2]
[310997663,1704846639558,-620.14729626,0.00029106,2]
[310997665,1704846639567,-21959.10297807,0.000295,30]
[310997667,1704846639577,-506.50479394,0.00029641,2]
[310997669,1704846639585,-150.98490151,0.00029676,4]
[310997671,1704846639594,-452.68224054,0.0002969,2]
[310997673,1704846639604,-164.15605724,0.00029775,2]
[310997675,1704846639613,-322.26268464,0.00029784,2]
[310997677,1704846639622,-313.07464898,0.00029785,2]
[310997679,1704846639631,-729.71955724,0.00029787,2]
[310997681,1704846639641,-260.82241338,0.00029787,2]
[310997683,1704846639650,-309.72125088,0.00029787,2]
[310997684,1704846639659,-271.7928713,0.00029787,2]
[310997687,1704846639668,-217.31710272,0.00029787,2]
[310997688,1704846639678,-2655.18,0.00029789,2]
[310997690,1704846639687,-2655.18,0.00029789,2]
[310997693,1704846639696,-2655.18,0.00029789,2]
[310997694,1704846639706,-2655.18,0.00029789,2]
[310997697,1704846639716,-2655.18,0.00029789,2]
[310997699,1704846639726,-2655.18,0.00029789,2]
[310997701,1704846639735,-2655.18,0.00029789,2]
[310997703,1704846639745,-2655.18,0.00029789,2]
[310997705,1704846639755,-2655.18,0.00029789,2]
[310997707,1704846639764,-2655.18,0.00029789,2]
[310997708,1704846639773,-149539.16879754,0.0002979,7]
[310997710,1704846639783,-1821.42144287,0.0002979,2]
[310997712,1704846639793,-763.21617798,0.0002979,2]
[310997714,1704846639802,-5000.0,0.0002979,3]
[310997716,1704846639811,-300.0,0.0002979,2]
[310997718,1704846639824,-2079.14548292,0.0002979,2]
[310997720,1704846639833,-3006.85624099,0.0002979,2]
[310997722,1704846639842,-283425.20901127,0.0002979,7]
[310997724,1704846639851,-200.0,0.0002979,2]
[310997726,1704846639860,-3312.33970056,0.0002979,2]
[310997728,1704846639870,-409.28811464,0.0002979,2]
[310997730,1704846639879,-160.0,0.0002987,24]
[310997732,1704846639888,-686.45378424,0.0003,4]
[310997734,1704846639898,-6971.6600529,0.0003,4]
[310997736,1704846639907,-228.42081252,0.0003,4]
[310997738,1704846639916,-243.70040844,0.0003,4]
[310997740,1704846639925,-463.25005188,0.0003,4]
[310997742,1704846639934,-640.42681025,0.0003,4]
[310997744,1704846639943,-2752.84129345,0.0003,2]
[310997746,1704846639952,-448.35344784,0.0003,2]
[310997748,1704846639962,-2910.28130465,0.0003,10]
[310997750,1704846639971,-1200.0,0.0003,4]
[310997752,1704846639980,-282.50801309,0.0003,3]
[310997754,1704846639992,-942.48018458,0.0003,2]
[310997757,1704846640003,-216.0,0.0003,2]
[310997761,1704846640012,-160.0,0.00030002,25]
[310997762,1704846640021,-197.28565553,0.0003013,2]
[310997765,1704846640031,-160.0,0.00030133,26]
[310997767,1704846640040,-155.0,0.00030137,2]
[310997769,1704846640049,-160.0,0.00030265,27]
[310997771,1704846640058,-150.98490151,0.00030282,2]
[310997773,1704846640067,-160.0,0.00030396,28]
[310997775,1704846640076,-493.60674206,0.000305,2]
[310997777,1704846640085,-160.0,0.00030528,29]
[310997779,1704846640095,-620.00736481,0.00030561,2]
[310997781,1704846640104,-150.44105804,0.0003065,2]
[310997784,1704846640118,-160.0,0.0003066,30]
[310997787,1704846640134,-690.08357963,0.00030682,2]
[310997788,1704846640145,-1968.45536575,0.00030682,2]
[310997791,1704846640155,-459.30625201,0.00030682,2]
[310997792,1704846640165,-219.57609435,0.00030682,2]
[310997794,1704846640175,-1873.71160504,0.00030682,2]
[310997797,1704846640184,-160.0,0.00030791,31]
[310997799,1704846640194,-160.0,0.00030923,32]
[310997801,1704846640204,-103942.59633946,0.00031,4]
[310997803,1704846640214,-539.41790632,0.00031,2]
[310997805,1704846640224,-160.0,0.00031055,33]
[310997807,1704846640234,-160.0,0.00031186,34]
[310997809,1704846640244,-301.15274387,0.00031186,5]
[310997811,1704846640258,-155.0,0.00031507,2]
[310997813,1704846640270,-160.0,0.0003169,3]
[310997815,1704846640280,-151.06767441,0.00031731,2]
[310997817,1704846640290,-680.81316922,0.000318,3]
[310997819,1704846640299,-160.0,0.00031894,4]
[310997821,1704846640309,-620.0000001,0.0003201,2]
[310997823,1704846640319,-620.00036824,0.00032089,2]
[310997825,1704846640329,-160.0,0.00032099,5]
[310997827,1704846640339,-160.0,0.00032303,6]
[310997829,1704846640348,-5000.0,0.000325,7]
[310997831,1704846640358,-160.0,0.00032508,7]
[310997833,1704846640368,-715.57846256,0.00032586,2]
[310997835,1704846640377,-3384.68367641,0.00032689,2]
[310997837,1704846640387,-160.0,0.00032712,8]
[310997839,1704846640396,-581.56,0.00032876,2]
[310997841,1704846640406,-250.0,0.00032876,10]
[310997859,1704846640569,-645.48067931,0.00032876,7]
[310997862,1704846640579,-500.0,0.00032876,7]
[310997864,1704846640589,-500.0,0.00032876,7]
[310997867,1704846640598,-200.70334912,0.00032876,7]
[310997871,1704846640609,-300.96359882,0.00032876,7]
[310997873,1704846640619,-227.00650424,0.00032876,7]
[310997876,1704846640629,-156.33172071,0.00032876,7]
[310997878,1704846640638,-329.18059851,0.00032876,7]
[310997880,1704846640648,-208.2577063,0.00032876,7]
[310997883,1704846640658,-500.0,0.00032876,7]
[310997885,1704846640668,-500.0,0.00032876,7]
[310997887,1704846640677,-215.23856483,0.00032876,7]
[310997889,1704846640687,-500.0,0.00032876,7]
[310997891,1704846640696,-500.0,0.00032876,7]
[310997893,1704846640706,-500.0,0.00032876,7]
[310997895,1704846640716,-500.0,0.00032876,7]
[310997897,1704846640725,-155.0,0.00032877,2]
[310997899,1704846640735,-168.08,0.00032877,2]
[310997901,1704846640744,-168.08,0.00032877,2]
[310997903,1704846640756,-168.08,0.00032877,2]
[310997905,1704846640765,-168.08,0.00032877,2]
[310997907,1704846640774,-168.08,0.00032877,2]
[310997909,1704846640784,-168.08,0.00032877,2]
[310997911,1704846640793,-168.08,0.00032877,2]
[310997913,1704846640802,-168.08,0.00032877,2]
[310997915,1704846640810,-168.08,0.00032877,2]
[310997917,1704846640823,-168.08,0.00032877,2]
[310997919,1704846640832,-168.08,0.00032877,2]
[310997921,1704846640842,-168.08,0.00032877,2]
[310997923,1704846640851,-168.08,0.00032877,2]
[310997925,1704846640860,-168.08,0.00032877,2]
[310997927,1704846640869,-168.08,0.00032877,2]
[310997929,1704846640878,-238.72064364,0.00032877,2]
[310997930,1704846640887,-160.0,0.00032916,9]
[310997932,1704846640897,-2555.41513,0.00032999,3]
[310997934,1704846640906,-649.46848965,0.00033,4]
[310997936,1704846640916,-475.49395368,0.00033,2]